Cogmind - Beta 13 @@@ ROGUE MODE // 2024.04.04 @ 18:57:11 Player: Fractal Result: Destroyed by G-34 Mercenary with Small Laser Performance ------------- Evolutions (1) 500 Regions Visited (2) 400 Robots Destroyed (14) 70 Value Destroyed (452) 452 Prototype IDs (0) 0 Alien Tech Used (0) 0 Bonus (0) 0 TOTAL SCORE: 1422 Bonus ------- None Cogmind --------- Core Integrity 0/400 Matter 115/300 Energy 80/100 System Corruption 0% Temperature Cool (6) Movement Core (200) Ox3 Location -9/Materials Parts ------- > --- POWER (1) -------- (None) > --- PROPULSION (2) --- (None) > --- UTILITY (3) ------ Medium Storage Unit > --- WEAPON (3) ------- (None) > --- INVENTORY (10) --- Heat Sink Large Storage Unit Sensor Array Seismic Detector Medium Laser Ion Cannon Peak State ------------ > --- POWER ------------ (None) > --- PROPULSION ------- Light Treads > --- UTILITY ---------- Medium Storage Unit Structural Scanner Sensor Array > --- WEAPON ----------- Ion Cannon Ion Cannon Heavy Assault Rifle > --- INVENTORY -------- Heat Sink Heat Sink Large Storage Unit Seismic Detector Medium Laser Mining Claw [Rating: 12] Favorites ----------- Power Ion Engine Engine Ion Engine Propulsion Aluminum Leg Treads Light Treads Leg Aluminum Leg Wheel Wheel Utility Sensor Array Device Sensor Array Storage Medium Storage Unit Weapon Assault Rifle Energy Gun Particle Gun Energy Cannon Ion Cannon Ballistic Gun Assault Rifle Launcher Grenade Launcher Slashing Weapon Mining Claw Build | -11 -10 -9 ------- Run | Yrd Mat Mat Slots Evolved 2 | . . 2 Power . | . . . Propulsion . | . . . Utility 1 | . . 1 Weapon 1 | . . 1 Parts Attached 48 | 9 26 13 Power 4 | 2 2 . Engine 4 | 2 2 . Core . | . . . Reactor . | . . . Propulsion 7 | 2 4 1 Treads 1 | . . 1 Leg 4 | . 4 . Wheel 2 | 2 . . Hover . | . . . Flight . | . . . Utility 16 | 2 9 5 Device 13 | 2 8 3 Storage 3 | . 1 2 Processor . | . . . Hackware . | . . . Protection . | . . . Artifact . | . . . Weapon 21 | 3 11 7 Energy Gun 6 | 1 4 1 Energy Cannon 3 | . . 3 Ballistic Gun 7 | 2 4 1 Ballistic Cannon . | . . . Launcher 2 | . 1 1 Special Weapon . | . . . Impact Weapon . | . . . Slashing Weapon 3 | . 2 1 Piercing Weapon . | . . . Special Melee Weapon . | . . . Unidentified Prototypes . | . . . Parts Lost 12 | . 2 10 Power 1 | . . 1 Propulsion 3 | . . 3 Utility 2 | . . 2 Weapon 6 | . 2 4 Highest Loss Streak 6 | . 2 6 To Critical Strikes . | . . . Average Slot Usage (%) 91 | . 96 80 Engine 10 | . 13 4 Treads 1 | . . 5 Leg 17 | . 22 8 Wheel 3 | . 5 . Device 21 | . 22 20 Storage 6 | . 4 10 Energy Gun 9 | . 10 8 Energy Cannon 1 | . . 3 Ballistic Gun 11 | . 14 5 Launcher 1 | . . 4 Slashing Weapon 4 | . 1 8 Naked Turns . | . . . Heaviest Build 34 | 9 12 34 Greatest Support 20 | 20 20 20 Greatest Overweight (x) 5 | . 1 5 Average Overweight (x) . | . . . Largest Inventory Capacity 15 | 5 5 15 Average Capacity 6 | 5 5 10 Most Carried 7 | 5 5 7 Average Carried 4 | 4 4 4 Final Capacity 10 | 5 5 10 Final Carried 6 | 5 4 6 Class Distribution -------------------- 95% | Mutant 4% | Scavenger-Skirmisher Dominant Class ---------------- Mutant | -10/Materials Mutant | -9/Materials Resources | -11 -10 -9 ----------- Run | Yrd Mat Mat Matter Collected 639 | 294 195 150 Remotely . | . . . Salvage Created 478 | 43 245 190 Parts 33 | 4 20 9 Haulers Intercepted . | . . . Recyclers Shooed . | . . . Parts Field Recycled . | . . . Retrieved Matter . | . . . Parts Self-Destructed . | . . . Prevented . | . . . Kills | -11 -10 -9 ------- Run | Yrd Mat Mat Combat Hostiles Destroyed 14 | 1 9 4 Melee 2 | . . 2 Guns 8 | 1 7 . Cannons 1 | . . 1 AOE 2 | . 2 . Classes Destroyed 3 | 1 1 1 Swarmer 3 | . 3 . Grunt 9 | 1 6 2 Sentry 2 | . . 2 Best Kill Streak 4 | 1 4 1 Combat Bots Only 4 | 1 4 1 Max Kills in Single Turn 1 | 1 1 1 Gunslinging . | . . . Exploded 1 | . 1 . Melee 1 | . . 1 Uniques/NPCs Destroyed . | . . . Combat | -11 -10 -9 -------- Run | Yrd Mat Mat Hostile Shots Fired 183 | 6 47 130 Missed 38 | 2 12 24 Damage Taken 1745 | 44 396 1305 Core 471 | 10 54 407 Absorbed by Shields . | . . . Core Remaining (%) 85 | 96 74 . Volleys Fired 71 | 6 29 36 Largest 3 | 2 2 3 Hottest 143 | 40 85 143 Shots Fired 101 | 12 48 41 Gun 94 | 12 46 36 Cannon 5 | . . 5 Launcher 2 | . 2 . Special . | . . . Kinetic 63 | 12 32 19 Thermal 36 | . 14 22 Explosive 2 | . 2 . Electromagnetic . | . . . Robot Hit Streak 11 | 2 3 11 Robot Miss Streak 5 | 2 3 5 Penetration Max . | . . . Secondary Targets 2 | . 2 . Max Gunslinging Chain 1 | . 1 . Shots Hit Robots 57 | 6 23 28 Core Hits 21 | 2 14 5 Critical Kills . | . . . Critical Parts Destroyed . | . . . Critical Strikes 1 | . . 1 Burn 1 | . . 1 Melee Attacks 7 | . 4 3 Impact . | . . . Slashing 7 | . 4 3 Piercing . | . . . Sneak Attacks . | . . . Combat Hostiles . | . . . Follow-up Attacks . | . . . Damage Inflicted 885 | 67 401 417 Guns 668 | 67 278 323 Cannons 47 | . . 47 Explosions 123 | . 123 . Melee 47 | . . 47 Ramming . | . . . Kinetic 415 | 67 202 146 Thermal 300 | . 76 224 Explosive 123 | . 123 . Electromagnetic . | . . . Impact . | . . . Slashing 47 | . . 47 Piercing . | . . . Highest Corruption 1 | . 1 . Average Corruption 1 | . 1 . Corruption Purged . | . . . Corruption Blocked . | . . . Effects 3 | . 3 . Message Errors 1 | . 1 . Matter Fused 1 | . 1 . Data Loss (major) 1 | . 1 . Overload Shots . | . . . Overflow Damage . | . . . Projectiles . | . . . Explosions . | . . . Melee . | . . . Knockbacks . | . . . Impact . | . . . Kinetic . | . . . Secondary . | . . . Self-Inflicted Damage . | . . . Shots . | . . . Rammed . | . . . Targets Rammed . | . . . Kicked . | . . . Crushed . | . . . Highest Temperature 96 | 12 96 92 Average Temperature 21 | 8 23 21 Received Heat Transfer 867 | 24 147 696 Siege Activations . | . . . Robots Corrupted . | . . . Combat Hostiles . | . . . Parts Fried . | . . . Impact Corruptions . | . . . Robots Melted 1 | . . 1 Combat Hostiles 1 | . . 1 Parts Melted 3 | . . 3 Heat Transferred 852 | . 186 666 Parts Sabotaged . | . . . Parts Stolen . | . . . Parts Stripped . | . . . Power Chain Reactions . | . . . Alert | -11 -10 -9 ------- Run | Yrd Mat Mat Peak Influence 276 | 20 276 90 Initial 24 | . 13 24 Average 88 | 14 146 60 Maximum Alert Level 1 | . 1 . Low Security (%) 81 | 100 59 100 Level 1 18 | . 40 . Level 2 . | . . . Level 3 . | . . . Level 4 . | . . . Level 5 . | . . . High Security . | . . . Max Security . | . . . Squads Dispatched 3 | . 2 1 Investigation 2 | . 1 1 Extermination . | . . . Reinforcement 1 | . 1 . Assault . | . . . Garrison . | . . . Intercept . | . . . Searches Triggered . | . . . Construction Impeded . | . . . Haulers Reinforced . | . . . Active Scanning Responses . | . . . Cargo Convoy Interrupts . | . . . Stealth | -11 -10 -9 --------- Run | Yrd Mat Mat Distress Signals . | . . . Communications Jammed . | . . . Distress Signals . | . . . Times Spotted 25 | 1 13 11 Peak Tracking Total 5 | 1 3 5 Tactical Retreats . | . . . Traps | -11 -10 -9 ------- Run | Yrd Mat Mat Traps Triggered 8 | . 7 1 Indirectly . | . . . Trap Hack Attempts . | . . . Triggered . | . . . Disarmed . | . . . Reprogrammed . | . . . Reused . | . . . Traps Extracted . | . . . Installed . | . . . Triggered . | . . . Machines | -11 -10 -9 ---------- Run | Yrd Mat Mat Machines Disabled . | . . . Max in Single Turn . | . . . Machines Repaired . | . . . Machines Dismantled . | . . . Machines Sabotaged . | . . . Overloaded Fab Kills . | . . . Hacking | -11 -10 -9 --------- Run | Yrd Mat Mat Machines Accessed 5 | . 4 1 Terminals 3 | . 3 . Fabricators . | . . . Repair Stations 1 | . 1 . Recycling Units 1 | . . 1 Scanalyzers . | . . . Garrison Access . | . . . Total Hacks 14 | . 12 2 Successful 6 | . 5 1 Failed 8 | . 7 1 Catastrophic 2 | . 2 . Database Lockouts . | . . . Manual 1 | . 1 . Terminals 10 | . 10 . Fabricators . | . . . Repair Stations 2 | . 2 . Recycling Units 2 | . . 2 Scanalyzers . | . . . Garrison Access . | . . . Terminal Hacks 5 | . 5 . Record 2 | . 2 . Alert Level 1 | . 1 . Maintenance Status 1 | . 1 . Zone Layout 1 | . 1 . Fabricator Hacks . | . . . Repair Station Hacks . | . . . Recycling Unit Hacks 1 | . . 1 Recycle Component 1 | . . 1 Scanalyzer . | . . . Garrison Access Hacks . | . . . Unauthorized Hacks . | . . . Terminals . | . . . Fabricators . | . . . Repair Stations . | . . . Recycling Units . | . . . Scanalyzers . | . . . Garrison Access . | . . . Data Cores Recovered . | . . . Used . | . . . Hacking Detections 4 | . 3 1 Full Trace Events 1 | . 1 . Feedback Events . | . . . Feedback Blocked . | . . . Robot Schematics Acquired . | . . . Robots Built . | . . . Authchips . | . . . Time . | . . . Total Robot Build Rating . | . . . Part Schematics Acquired . | . . . Parts Built . | . . . Authchips . | . . . Time . | . . . Total Part Build Rating . | . . . Parts Repaired . | . . . Time . | . . . Parts Recycled 1 | . . 1 Recycled Matter . | . . . Retrieved Matter . | . . . Retrieved Components . | . . . Parts Scanalyzed . | . . . Part Schematics Acquired . | . . . Parts Damaged . | . . . Bothacking | -11 -10 -9 ------------ Run | Yrd Mat Mat Used RIF Installer . | . . . Robots Hacked . | . . . Non-combat . | . . . Combat . | . . . Robot Hacks Applied . | . . . Relay Couplers Released . | . . . Fabnet Peak Effective % . | . . . Robots Rewired . | . . . Allies Hacked . | . . . Hacks Repelled . | . . . Allies | -11 -10 -9 -------- Run | Yrd Mat Mat Total Allies . | . . . Largest Group . | . . . Highest-Rated Group . | . . . Highest-Rated Ally . | . . . Total Orders . | . . . Ally Attacks . | . . . Total Damage . | . . . Kills . | . . . Allies Corrupted . | . . . Allies Melted . | . . . Intel | -11 -10 -9 ------- Run | Yrd Mat Mat Robot Analysis Total . | . . . Derelict Logs Recovered . | . . . Drone Launches . | . . . Drone Recoveries . | . . . Exploration | -11 -10 -9 ------------- Run | Yrd Mat Mat Turns Passed 1207 | 314 565 328 Spaces Moved 728 | 220 383 125 Core 50 | 41 . 9 Treads 63 | . . 63 Legs 346 | . 293 53 Wheels 269 | 179 90 . Hover . | . . . Flight . | . . . Fastest Speed 50 | 50 80 120 Average Speed 110 | 74 110 175 Slowest Speed 300 | 80 190 300 Overloaded Moves . | . . . Propulsion Burnouts . | . . . Robots Hopped . | . . . Cave-ins Triggered . | . . . Exploration Rate (%) 26 | 13 52 13 Regions Visited 2 Branch Regions . Pre-discovered Areas . | . . . Known Exits Taken . | . . . Unknown Exits Taken 2 | 1 1 . Scrap Searched . | . . . Spaces Dug 3 | . 3 . Terrain Destroyed 23 | . 22 1 Melee 3 | . 3 . Projectile 1 | . . 1 AOE 19 | . 19 . Terrain Rammed . | . . . Walls Destroyed . | . . . Machines Disabled . | . . . Actions | -11 -10 -9 --------- Run | Yrd Mat Mat Total 1008 | 359 463 186 Wait 110 | 110 . . Move 726 | 219 382 125 Hop . | . . . Pick Up 32 | 13 11 8 Fast Attach 10 | . 10 . Attach 21 | 8 7 6 Detach 2 | . 1 1 Swap 17 | 1 9 7 Drop 12 | 2 10 . Fire 71 | 6 29 36 Melee 7 | . 4 3 Ram . | . . . Kick . | . . . Crush . | . . . Escape Stasis . | . . . Rewire . | . . . Trap . | . . . Miscellaneous . | . . . Route ------- -11/Scrapyard -10/Materials (discovered 2 exits: *Mat / [*Min]) -9/Materials History --------- Turn | Location | Event 2 | -11/Scrapyard | Met Revision 17 71 | -11/Scrapyard | Discovered new exit (range 8) 315 | -11/Scrapyard | Entered Materials 316 | -10/Materials | Build established: Mutant 372 | -10/Materials | Discovered new exit (range 10) 715 | -10/Materials | Discovered new exit (range 11) 880 | -10/Materials | Entered another Materials area 880 | -9/Materials | Evolved 2 slots: Utility x1, Weapon x1 1045 | -9/Materials | Lost 4 parts (1p2n1w) 1188 | -9/Materials | Core integrity fell below 50% 1202 | -9/Materials | Core integrity fell below 20% 1208 | -9/Materials | Destroyed by G-34 Mercenary with Small Laser Last Messages --------------- G-34 Mercenary destroyed. [Achievement: Crack Shot] G-34 Mercenary destroyed. R-06 Scavenger collects Sml. Laser. R-06 Scavenger collects Aluminum Leg. R-06 Scavenger collects Sml. Laser. Critical hit (Burn: +37). [Achievement: Storm Trooper] R-06 Scavenger collects Aluminum Leg. Critical hit (Burn: +37). U-05 Engineer builds a Wall. Ion Cannon destroyed. Lgt. Treads destroyed. Heat Sink destroyed. Hvy. Assault Rifle destroyed. G-47 Trooper destroyed. Acquired 47 matter. Structural Scanner destroyed. Mining Claw destroyed. [Achievement: First Step to Greatness] Map ----- +----------------------------------------------------+ | ?########## + ???????## !###???????? | | ?# # # ???????## !##???????? | | ?# """ # # #### ##???????? | | ?# """ # ########### !##???????? | | ?# """ # ##???????? | | ?# + !###???????? | | ?# " " # ######???????? | | ?# "Y" # ########### #####????????? | | ?# """ # ########### ##???????????? | | ?# # ########### ##???????????? | | ?# ######## # + ##???????????? | | ?##??????## # # ############?? | | ?????????## # """ # ############?? | | ?????????## # """"" # # ##?? | | ?????????## # """"" # # """ ##?? | | ?????????## #??"""" # # """"" ##?? | | ?????????## #??""" # # """"" ##?? | | ?????????## #? # + """"" ##?? | | ?????????## #?######### # """ ##?? | | ?????????## #?######### # ##?? | | ?????????## ?????????## # ##?? | | ???????????????????????## ############?? | | ???????????????????????## ############?? | | ???????????????????????## ##???????????? | | ???????????????????????## ##???????????? | | ???????????????????????##@ ##???????????? | | ??????????????????????### ###??????????? | | ??????????????????????### g#######??????? | | ????????????????######## g ######??????? | | ????????????????########gT"g! ]##??????? | | ?????????????? "[ ]##??????? | | ?????????????? %== !!##??????? | | ?????????????? % !!##??????? | | ?????????????? ######" ###### ]]##??????? | | ??????????????#######%" ###### ]]##??????? | | ???????????????????##" ??#########??????? | | ???????????????????## ????#######??????? | | ???????????????????## ?????????????????? | | ???????????????????## ?????????????????? | | ???????????????????## ??????????????????? | | ????????????????????# ??????????????????? | | ????????????????????? ???????????????????? | | ?????????????????????????????????????????? | | ?????????????????????????????????????????? | | ?????????????????????????????????????????? | | ?????????????????????????????????????????? | | ?????????????????????????????????????????? | | ?????????????????????????????????????????? | | ?????????????????????????????????????????? | | ?????????????????????????????????????????? | +----------------------------------------------------+ Best States ------------- Heat Dissipation 38 Energy Generation 10 Energy Capacity 350 Matter Stores 300 Matter Capacity 300 Sight Range 16 Robot Scan Range 14 Terrain Scan Density 10 Evasion (%) 55 Recoil Reduction 1 Item Schematics ----------------- None Robot Schematics ------------------ None Fabricated ------------ Nothing Alien Tech Used ----------------- None Achievements -------------- Crack Shot First Step to Greatness It's Just You Storm Trooper Uninvited Guest Challenges ------------ None Game ------ Seed MatterComponentPlatform Manual? 0 Play Time 01:06:59 Cumulative 1.0 hours Start 2024.04.04 @ 17:44:52 End 2024.04.04 @ 18:57:11 Sessions 1 Manual Loads 0 Difficulty Rogue Special Mode None Game No. 1 Rogue 1 Adventurer 0 Explorer 0 Win Type - Total 0 Types 0/0/0/0/0/0/0/0/0 Lore% 0 Gallery% 2 Achievement% 1 Wizard Run 0 Options --------- Layout 1 ASCII 0 Keyboard 0 Movement Mouse Keybinds 0 Fullscreen 1 Font 48/Terminus Map View 50x35 Zoom Use 12% Tactical HUD 0 Map Filters NONE Filters NONE Steam 1 RUN: 457d55a1-19f4-4139-a780-1d03a15df80c